fUSD/lending_fUSD_20241106
["ID","MTS","AMOUNT","RATE_DAILY","PERIOD"]
[341422102,1730873444825,-500.0,0.00037998,14]
[341422103,1730873444836,-500.0,0.00037998,14]
[341422104,1730873444846,-500.0,0.00037998,14]
[341422105,1730873444855,-500.0,0.00037998,14]
[341422106,1730873444864,-341.00895701,0.00037998,14]
[341422107,1730873444874,-524.11,0.00037998,14]
[341422108,1730873444883,-524.11,0.00037998,14]
[341422109,1730873444894,-569.77678145,0.00037998,14]
[341422110,1730873444904,-2235.68,0.00037998,14]
[341422111,1730873444914,-2235.68,0.00037998,14]
[341422112,1730873444927,-500.0,0.00037998,14]
[341422113,1730873444937,-500.0,0.00037998,14]
[341422114,1730873444947,-500.0,0.00037998,14]
[341422115,1730873444956,-500.0,0.00037998,14]
[341422116,1730873444966,-500.0,0.00037998,14]
[341422117,1730873444976,-500.0,0.00037998,14]
[341422118,1730873444985,-500.0,0.00037998,14]
[341422119,1730873444995,-500.0,0.00037998,14]
[341422120,1730873445005,-500.0,0.00037998,14]
[341422121,1730873445015,-500.0,0.00037998,14]
[341422122,1730873445026,-500.0,0.00037998,14]
[341422123,1730873445037,-500.0,0.00037998,14]
[341422124,1730873445047,-500.0,0.00037998,14]
[341422125,1730873445056,-616.08,0.00037998,14]
[341422126,1730873445066,-1775.2,0.00037998,14]
[341422127,1730873445075,-534.02,0.00037998,14]
[341422128,1730873445087,-500.0,0.00037998,14]
[341422129,1730873445095,-500.0,0.00037998,14]
[341422130,1730873445105,-531.08431279,0.00037998,14]
[341422131,1730873445114,-2111.05,0.00037998,14]
[341422132,1730873445124,-2111.05,0.00037998,14]
[341422133,1730873445133,-2803.36,0.00037998,14]
[341422134,1730873445143,-2803.36,0.00037998,14]
[341422135,1730873445152,-500.0,0.00037998,14]
[341422136,1730873445161,-500.0,0.00037998,14]
[341422137,1730873445171,-500.0,0.00037998,14]
[341422138,1730873445180,-251.8,0.00037998,14]
[341422140,1730873445189,-500.0,0.00037998,14]
[341422141,1730873445198,-500.0,0.00037998,14]
[341422142,1730873445207,-500.0,0.00037998,14]
[341422143,1730873445216,-500.0,0.00037998,14]
[341422144,1730873445225,-500.0,0.00037998,14]
[341422145,1730873445235,-500.0,0.00037998,14]
[341422146,1730873445244,-500.0,0.00037998,14]
[341422147,1730873445253,-500.0,0.00037998,14]
[341422148,1730873445263,-500.0,0.00037998,14]
[341422149,1730873445274,-500.0,0.00037998,14]
[341422151,1730873445284,-500.0,0.00037998,14]
[341422153,1730873445294,-500.0,0.00037998,14]
[341422155,1730873445304,-500.0,0.00037998,14]
[341422156,1730873445315,-1019.51,0.00037998,14]
[341422157,1730873445324,-1019.51,0.00037998,14]
[341422158,1730873445336,-1398.01,0.00037998,14]
[341422159,1730873445346,-1398.01,0.00037998,14]
[341422160,1730873445355,-500.0,0.00037998,14]
[341422161,1730873445365,-500.0,0.00037998,14]
[341422162,1730873445375,-1268.41,0.00037998,14]
[341422163,1730873445384,-1268.41,0.00037998,14]
[341422164,1730873445394,-500.0,0.00037998,14]
[341422165,1730873445404,-500.0,0.00037998,14]
[341422166,1730873445414,-500.0,0.00037998,14]
[341422168,1730873445423,-500.0,0.00037998,14]
[341422169,1730873445432,-794.76,0.00037998,14]
[341422170,1730873445442,-318.47258064,0.00037998,14]
[341422171,1730873445451,-582.66,0.00037998,14]
[341422172,1730873445460,-500.0,0.00037998,14]
[341422173,1730873445469,-500.0,0.00037998,14]
[341422174,1730873445478,-500.0,0.00037998,14]
[341422175,1730873445488,-608.60863003,0.00037998,14]
[341422176,1730873445498,-500.0,0.00037998,14]
[341422177,1730873445508,-500.0,0.00037998,14]
[341422178,1730873445517,-500.0,0.00037998,14]
[341422179,1730873445527,-500.0,0.00037998,14]
[341422180,1730873445536,-500.0,0.00037998,14]
[341422181,1730873445546,-500.0,0.00037998,14]
[341422182,1730873445555,-500.0,0.00037998,14]
[341422183,1730873445565,-500.0,0.00037998,14]
[341422184,1730873445575,-500.0,0.00037998,14]
[341422185,1730873445586,-500.0,0.00037998,14]
[341422186,1730873445596,-500.0,0.00037998,14]
[341422187,1730873445605,-500.0,0.00037998,14]
[341422188,1730873445615,-500.0,0.00037998,14]
[341422189,1730873445625,-500.0,0.00037998,14]
[341422190,1730873445635,-500.0,0.00037998,14]
[341422191,1730873445644,-500.0,0.00037998,14]
[341422192,1730873445654,-500.0,0.00037998,14]
[341422193,1730873445664,-500.0,0.00037998,14]
[341422194,1730873445674,-500.0,0.00037998,14]
[341422195,1730873445683,-500.0,0.00037998,14]
[341422196,1730873445693,-500.0,0.00037998,14]
[341422197,1730873445703,-500.0,0.00037998,14]
[341422198,1730873445712,-628.76,0.00037998,14]
[341422199,1730873445722,-377.01129648,0.00037998,14]
[341422200,1730873445732,-500.0,0.00037998,14]
[341422201,1730873445742,-500.0,0.00037998,14]
[341422202,1730873445751,-303.70280379,0.00037998,14]
[341422203,1730873445764,-500.0,0.00037998,14]
[341422204,1730873445773,-500.0,0.00037998,14]
[341422205,1730873445783,-500.0,0.00037998,14]
[341422206,1730873445792,-500.0,0.00037998,14]
[341422207,1730873445802,-500.0,0.00037998,14]
[341422208,1730873445811,-500.0,0.00037998,14]
[341422209,1730873445820,-500.0,0.00037998,14]
[341422210,1730873445830,-500.0,0.00037998,14]
[341422211,1730873445843,-324.65,0.00037998,14]
[341422212,1730873445853,-602.6150153,0.00037998,14]
[341422213,1730873445863,-500.0,0.00037998,14]
[341422214,1730873445873,-500.0,0.00037998,14]
[341422215,1730873445883,-500.0,0.00037998,14]
[341422216,1730873445893,-500.0,0.00037998,14]
[341422217,1730873445903,-1395.13,0.00037998,14]
[341422218,1730873445913,-1395.13,0.00037998,14]
[341422219,1730873445927,-677.86832515,0.00037998,14]
[341422220,1730873445951,-717.26167485,0.00037998,14]
[341422221,1730873445962,-1395.13,0.00037998,14]
[341422222,1730873445972,-500.0,0.00037998,14]
[341422223,1730873445982,-729.84,0.00037998,7]
[341422224,1730873445992,-729.84,0.00037998,7]
[341422225,1730873446003,-500.0,0.00037998,14]
[341422226,1730873446014,-729.84,0.00037998,7]
[341422227,1730873446024,-465.39101359,0.00037998,14]
[341422228,1730873446034,-729.84,0.00037998,7]
[341422229,1730873446044,-729.84,0.00037998,7]
[341422230,1730873446055,-1097.3,0.00037998,14]
[341422231,1730873446065,-1097.3,0.00037998,14]
[341422232,1730873446075,-1097.3,0.00037998,14]
[341422233,1730873446087,-1097.3,0.00037998,14]
[341422234,1730873446096,-1097.3,0.00037998,14]
[341422235,1730873446106,-500.0,0.00037998,14]
[341422236,1730873446116,-500.0,0.00037998,14]
[341422237,1730873446126,-500.0,0.00037998,14]
[341422238,1730873446136,-500.0,0.00037998,14]
[341422239,1730873446146,-500.0,0.00037998,14]
[341422240,1730873446155,-500.0,0.00037998,14]
[341422241,1730873446165,-500.0,0.00037998,14]
[341422242,1730873446175,-500.0,0.00037998,14]
[341422243,1730873446184,-427.6356835,0.00037998,14]
[341422244,1730873446194,-500.0,0.00037998,14]
[341422245,1730873446203,-500.0,0.00037998,14]
[341422246,1730873446213,-500.0,0.00037998,14]
[341422247,1730873446223,-500.0,0.00037998,14]
[341422248,1730873446232,-500.0,0.00037998,14]
[341422249,1730873446242,-241.51874811,0.00037998,14]
[341422250,1730873446252,-714.19,0.00037998,14]
[341422251,1730873446263,-714.19,0.00037998,14]
[341422252,1730873446276,-714.19,0.00037998,14]
[341422253,1730873446287,-714.19,0.00037998,14]
[341422254,1730873446297,-6582.85,0.00037998,2]
[341422255,1730873446307,-6582.85,0.00037998,2]
[341422256,1730873446317,-6582.85,0.00037998,2]
[341422257,1730873446327,-6582.85,0.00037998,2]
[341422258,1730873446339,-789.49,0.00037998,14]
[341422259,1730873446349,-789.49,0.00037998,14]
[341422260,1730873446359,-789.49,0.00037998,14]
[341422261,1730873446368,-789.49,0.00037998,14]
[341422262,1730873446378,-222.24287995,0.00037998,14]
[341422263,1730873446392,-567.24712005,0.00037998,14]
[341422264,1730873446401,-500.0,0.00037998,14]
[341422265,1730873446411,-500.0,0.00037998,14]
[341422266,1730873446421,-500.0,0.00037998,14]
[341422267,1730873446430,-500.0,0.00037998,14]
[341422268,1730873446440,-500.0,0.00037998,14]
[341422269,1730873446450,-500.0,0.00037998,14]
[341422270,1730873446459,-500.0,0.00037998,14]
[341422271,1730873446469,-500.0,0.00037998,14]
[341422272,1730873446478,-279.17877994,0.00037998,14]
[341422273,1730873446496,-220.82122006,0.00037998,14]
[341422274,1730873446505,-127.18682709,0.00037998,14]
[341422275,1730873446517,-372.81317291,0.00037998,14]
[341422276,1730873446526,-500.0,0.00037998,14]
[341422278,1730873446535,-249.34844173,0.00037998,14]
[341422279,1730873446545,-500.0,0.00037998,14]
[341422281,1730873446554,-786.42,0.00037998,14]
[341422282,1730873446564,-786.42,0.00037998,14]
[341422284,1730873446573,-786.42,0.00037998,14]
[341422285,1730873446584,-786.42,0.00037998,14]
[341422287,1730873446597,-500.0,0.00037998,14]
[341422288,1730873446606,-500.0,0.00037998,14]
[341422290,1730873446615,-500.0,0.00037998,14]
[341422291,1730873446624,-351.75,0.00037998,14]
[341422292,1730873446633,-500.0,0.00037998,14]
[341422293,1730873446642,-500.0,0.00037998,14]
[341422294,1730873446652,-500.0,0.00037998,14]
[341422295,1730873446661,-500.0,0.00037998,14]
[341422296,1730873446670,-500.0,0.00037998,14]
[341422297,1730873446679,-500.0,0.00037998,14]
[341422298,1730873446688,-500.0,0.00037998,14]
[341422299,1730873446700,-500.0,0.00037998,14]
[341422300,1730873446713,-500.0,0.00037998,14]
[341422301,1730873446722,-624.32276695,0.00037998,14]
[341422302,1730873446731,-151.0,0.00037998,7]
[341422303,1730873446740,-151.0,0.00037998,7]
[341422304,1730873446749,-151.0,0.00037998,7]
[341422305,1730873446758,-500.0,0.00037998,14]
[341422306,1730873446767,-500.0,0.00037998,14]
[341422307,1730873446776,-500.0,0.00037998,14]
[341422308,1730873446785,-151.0,0.00037998,7]
[341422309,1730873446794,-151.0,0.00037998,7]
[341422310,1730873446803,-933.6397784,0.00037998,14]
[341422311,1730873447367,-1000.0,0.00037003,2]
[341422312,1730873447376,-280.81103182,0.00037998,14]
[341422313,1730873447387,-364.52918978,0.00037998,14]
[341422314,1730873447396,-1578.98,0.00037998,14]
[341422315,1730873447405,-1578.98,0.00037998,14]
[341422316,1730873447415,-313.69580122,0.00037998,14]
[341422317,1730873447426,-681.77867131,0.00037998,14]
[341422318,1730873447522,-28.16651312,0.00037998,14]
[341422319,1730873447536,-555.33901435,0.00037998,14]
[341422320,1730873447545,-1578.98,0.00037998,14]
[341422321,1730873447554,-1578.98,0.00037998,14]
[341422322,1730873447563,-500.0,0.00037998,14]
[341422323,1730873447571,-500.0,0.00037998,14]
[341422324,1730873447582,-500.0,0.00037998,14]
[341422325,1730873447590,-500.0,0.00037998,14]
[341422326,1730873447599,-500.0,0.00037998,14]
[341422327,1730873447608,-500.0,0.00037998,14]
[341422328,1730873447617,-323.5052357,0.00037998,14]
[341422329,1730873447626,-1041.66,0.00037998,14]
[341422330,1730873447636,-1041.66,0.00037998,14]
[341422331,1730873447645,-1041.66,0.00037998,14]
[341422332,1730873447654,-1041.66,0.00037998,14]
[341422333,1730873447663,-1041.66,0.00037998,14]
[341422334,1730873447673,-1041.66,0.00037998,14]
[341422335,1730873447682,-2701.91,0.00037998,14]
[341422336,1730873447691,-2701.91,0.00037998,14]
[341422337,1730873447700,-2701.91,0.00037998,14]
[341422338,1730873447709,-2701.91,0.00037998,14]
[341422339,1730873447718,-2701.91,0.00037998,14]
[341422340,1730873447727,-2701.91,0.00037998,14]
[341422341,1730873447736,-500.0,0.00037998,14]
[341422342,1730873447745,-500.0,0.00037998,14]
[341422343,1730873447754,-500.0,0.00037998,14]
[341422344,1730873447763,-500.0,0.00037998,14]
[341422345,1730873447772,-500.0,0.00037998,14]
[341422346,1730873447781,-500.0,0.00037998,14]
[341422347,1730873447790,-500.0,0.00037998,14]
[341422348,1730873447799,-500.0,0.00037998,14]
[341422349,1730873447809,-500.0,0.00037998,14]
[341422350,1730873447818,-500.0,0.00037998,14]
[341422351,1730873447827,-500.0,0.00037998,14]
[341422352,1730873447836,-2178.94,0.00037998,14]
[341422353,1730873447845,-2178.94,0.00037998,14]
[341422354,1730873447855,-2178.94,0.00037998,14]
[341422355,1730873447864,-2178.94,0.00037998,14]
[341422356,1730873447873,-2178.94,0.00037998,14]
[341422357,1730873447882,-2178.94,0.00037998,14]
[341422358,1730873447891,-616.5,0.00037998,14]
[341422359,1730873447901,-616.5,0.00037998,14]
[341422360,1730873447910,-1780.65,0.00037998,14]
[341422361,1730873447921,-616.5,0.00037998,14]
[341422362,1730873447932,-1780.65,0.00037998,14]
[341422363,1730873447941,-616.5,0.00037998,14]
[341422364,1730873447950,-1780.65,0.00037998,14]
[341422365,1730873447959,-616.5,0.00037998,14]
[341422366,1730873447970,-24.74100953,0.00037998,14]
[341422367,1730873447983,-1457.18,0.00037998,14]
[341422368,1730873447994,-298.72899047,0.00037998,14]
[341422369,1730873448004,-70.54878619,0.00037998,14]
[341422370,1730873448015,-1426.69041782,0.00037998,14]
[341422371,1730873448027,-283.41079599,0.00037998,14]
[341422372,1730873448036,-76.67154965,0.00037998,14]
[341422373,1730873448048,-539.82845035,0.00037998,14]
[341422374,1730873448057,-500.0,0.00037998,14]
[341422375,1730873448066,-428.84073502,0.00037998,14]
[341422376,1730873454903,204.29241758,0.00023,2]
[341422377,1730873459763,241.145,0.0003,2]
[341422378,1730873459960,150.0,0.00018123,2]
[341422379,1730873462376,165.031,0.00029832,2]
[341422380,1730873495971,1934.83260286,0.000262,2]
[341422381,1730873495993,178.16739714,0.000262,2]
[341422382,1730873501281,150.0,0.00018123,2]
[341422383,1730873523522,180.54,0.00036916,120]
[341422384,1730873535661,500.0,0.0003,30]
[341422385,1730873542879,150.0,0.00018123,2]
[341422386,1730873601098,250.0,0.0003688,120]
[341422387,1730873706192,155.57,0.00015342,2]
[341422391,1730873797149,166.2,0.0003644,120]
[341422392,1730873919015,150.0,0.000165,3]
[341422393,1730874039899,740.67,0.00035737,120]
[341422394,1730874067174,364.79,0.0003623,120]
[341422396,1730874208949,250.0,0.00035739,120]
[341422398,1730874238900,156.84,0.00015342,2]
[341422399,1730874288967,179.71,0.00035423,120]
[341422400,1730874308642,301936.99244109,0.00016,2]
[341422402,1730874352148,-150.0,0.00018107,2]
[341422403,1730874352170,-226.41735,0.00019626,2]
[341422404,1730874352194,-300.0,0.00019725,2]
[341422405,1730874352216,-381.37889159,0.0002,2]
[341422406,1730874386572,4964.25841914,0.00037,120]
[341422407,1730874432132,-150.0,0.00018118,2]
[341422408,1730874432153,-300.0,0.00018919,2]
[341422409,1730874432173,-1783.92071799,0.0001892,2]
[341422410,1730874432276,-154.66863046,0.0001892,2]
[341422411,1730874484248,43024.62994448,0.00015,2]
[341422429,1730874550226,-200.0,0.0001634,2]
[341422430,1730874550247,-6312.83802037,0.00018,2]
[341422431,1730874550272,-283.32540226,0.00018,2]
[341422432,1730874550292,-1687.05657795,0.000181,2]
[341422433,1730874550313,-150.0,0.00018123,2]
[341422434,1730874550334,-7867.8293604,0.0001892,2]
[341422435,1730874550354,-1280.8634175,0.000199,2]
[341422436,1730874550374,-13554.85110841,0.0002,2]
[341422437,1730874550393,-2043.59248298,0.0002,2]
[341422438,1730874550412,-250.0,0.00021,2]
[341422439,1730874550432,-300.0,0.00023,2]
[341422440,1730874550451,-626.43524688,0.00024,2]
[341422441,1730874550472,-500.0,0.00024932,2]
[341422442,1730874550492,-350.0,0.00025,2]
[341422443,1730874550513,-14844.54392325,0.00025,2]
[341422444,1730874552125,-3603.51874699,0.00025,2]
[341422445,1730874552147,-6845.21878956,0.00025,7]
[341422446,1730874552168,-400.0,0.00027,2]
[341422447,1730874552189,-155.57,0.00028858,2]
[341422448,1730874552209,-450.0,0.00029,2]
[341422449,1730874552229,-856.18481417,0.0003,2]
[341422450,1730874552251,-226.491,0.00030683,2]
[341422451,1730874552276,-500.0,0.00031,2]
[341422452,1730874552296,-550.0,0.00033,2]
[341422453,1730874552318,-177.98,0.00033093,2]
[341422454,1730874552339,-161.48,0.0003312,4]
[341422455,1730874552360,-688.19,0.00033122,2]
[341422456,1730874552379,-250.0,0.00033122,2]
[341422457,1730874552400,-3450.78,0.00033791,2]
[341422458,1730874552422,-800.0,0.00033901,2]
[341422459,1730874552444,-688.19,0.00033998,2]
[341422460,1730874552464,-200.0,0.000342,2]
[341422466,1730874565727,150.0,0.00031,2]
[341422467,1730874572858,150.0,0.00017157,2]
[341422473,1730874614206,150.55831955,0.00018123,2]
[341422515,1730874631991,-561.75930824,0.00034672,2]
[341422516,1730874632003,-1822.29069176,0.00034672,2]
[341422517,1730874632013,-600.0,0.00035,2]
[341422518,1730874632022,-364.99124972,0.00035,2]
[341422519,1730874632031,-2384.05,0.00035229,2]
[341422520,1730874632040,-66.76805852,0.0003576,2]
[341422521,1730874632052,-133.23194148,0.0003576,2]
[341422522,1730874632061,-1420.79095409,0.00035786,2]
[341422523,1730874632076,-649.6949641,0.00035786,2]
[341422524,1730874632086,-313.56408181,0.00035786,2]
[341422525,1730874632096,-186.43591819,0.00035916,2]
[341422526,1730874632115,-63.56408181,0.00035916,2]
[341422527,1730874632125,-167.17,0.00035916,2]
[341422528,1730874632134,-319.68,0.00035931,120]
[341422529,1730874632144,-1034.54682943,0.00035994,43]
[341422530,1730874632155,-195.98217057,0.00035994,43]
[341422531,1730874632164,-420.0,0.00036,120]
[341422532,1730874632174,-200.0,0.00036001,7]
[341422533,1730874632183,-126.25782943,0.00036143,2]
[341422534,1730874632195,-140.87217057,0.00036143,2]
[341422535,1730874632204,-346.55,0.00036184,120]
[341422536,1730874632214,-688.19,0.00036262,2]
[341422537,1730874632224,-13073.87,0.00036286,2]
[341422538,1730874632234,-2384.05,0.00036343,2]
[341422539,1730874632243,-177.98,0.00036403,2]
[341422540,1730874632253,-427.45,0.00036849,2]
[341422541,1730874632263,-427.45,0.00036849,2]
[341422542,1730874632273,-427.45,0.00036849,2]
[341422543,1730874632286,-427.45,0.00036849,2]
[341422544,1730874632296,-427.45,0.00036849,2]
[341422545,1730874632305,-2384.05,0.000369,2]
[341422564,1730874632565,-621.29807048,0.000369,2]
[341422566,1730874632577,-427.45,0.00036941,2]
[341422568,1730874632587,-152.371,0.00036948,2]
[341422570,1730874632596,-2086.96,0.00037,2]
[341422572,1730874632606,-650.0,0.00037,2]
[341422575,1730874632616,-115035.74158086,0.00037,120]
[341422577,1730874632625,-3000.0,0.00037,120]
[341422578,1730874632634,-420.0,0.00037,120]
[341422580,1730874632647,-2714.2932605,0.00037,14]
[341422582,1730874632656,-621.29807047,0.00037252,2]
[341422584,1730874632666,-500.0,0.00037353,7]
[341422586,1730874632675,-500.0,0.00037353,7]
[341422588,1730874632684,-500.0,0.00037353,7]
[341422590,1730874632693,-500.0,0.00037353,7]
[341422592,1730874632703,-500.0,0.00037353,7]
[341422594,1730874632712,-500.0,0.00037353,7]
[341422596,1730874632721,-500.0,0.00037353,7]
[341422598,1730874632731,-500.0,0.00037353,7]
[341422600,1730874632740,-500.0,0.00037353,7]
[341422602,1730874632749,-500.0,0.00037353,7]
[341422604,1730874632758,-500.0,0.00037353,7]
[341422606,1730874632767,-629.19,0.00037353,7]
[341422608,1730874632776,-500.0,0.00037353,7]
[341422610,1730874632786,-2384.05,0.00037457,2]
[341422612,1730874632795,-164.32287536,0.00037603,2]
[341422614,1730874632804,-621.29807047,0.00037603,2]
[341422616,1730874632813,-671.98161,0.0003762,2]
[341422618,1730874632822,-337.44418004,0.0003764,2]
[341422620,1730874632835,-164.32287531,0.00037645,2]
[341422622,1730874632844,-164.32287531,0.00037688,2]
[341422624,1730874632854,-250000.0,0.000377,2]
[341422626,1730874632863,-150.0,0.00037703,2]
[341422628,1730874632872,-150.0,0.00037716,2]
[341422630,1730874632881,-150.0,0.00037725,2]
[341422632,1730874632890,-150.0,0.00037725,2]
[341422634,1730874632900,-150.0,0.00037726,2]
[341422636,1730874632910,-150.0,0.00037727,2]
[341422638,1730874632919,-150.0,0.00037727,2]
[341422640,1730874632928,-164.32287531,0.0003773,2]
[341422642,1730874632937,-150.0,0.00037731,2]
[341422644,1730874632946,-150.0,0.00037734,2]
[341422646,1730874632955,-150.0,0.00037736,2]
[341422648,1730874632965,-150.0,0.00037738,2]
[341422650,1730874632974,-150.0,0.0003774,2]
[341422652,1730874632983,-150.0,0.00037744,2]
[341422654,1730874632992,-150.0,0.00037751,2]
[341422656,1730874633002,-150.0,0.00037761,2]
[341422658,1730874633012,-150.0,0.00037767,2]
[341422660,1730874633022,-150.0,0.00037772,2]
[341422661,1730874633031,-164.32287531,0.00037773,2]
[341422663,1730874633041,-150.0,0.00037773,2]
[341422666,1730874633051,-150.0,0.00037774,2]
[341422668,1730874633060,-150.0,0.00037774,2]
[341422669,1730874633070,-150.0,0.00037777,2]
[341422671,1730874633083,-150.0,0.0003778,2]
[341422673,1730874633092,-150.0,0.0003778,2]
[341422675,1730874633101,-150.0,0.00037781,2]
[341422677,1730874633111,-150.0,0.00037782,2]
[341422679,1730874633120,-150.0,0.00037791,2]
[341422681,1730874633130,-150.0,0.00037794,2]
[341422683,1730874633140,-150.0,0.00037797,2]
[341422686,1730874633150,-619.25086817,0.00037798,15]
[341422688,1730874633160,-150.0,0.00037799,2]
[341422690,1730874633170,-5299.144011,0.000378,2]
[341422692,1730874633181,-5291.7622,0.000378,2]
[341422694,1730874633191,-150.0,0.00037801,2]
[341422696,1730874633201,-150.0,0.00037802,2]
[341422698,1730874633211,-150.0,0.00037804,2]
[341422700,1730874633221,-150.0,0.00037804,2]
[341422702,1730874633231,-150.0,0.00037804,2]
[341422704,1730874633241,-1500.0,0.00037806,2]
[341422706,1730874633251,-150.0,0.00037807,2]
[341422708,1730874633260,-150.0,0.00037807,2]
[341422710,1730874633271,-500.0,0.00037808,14]
[341422712,1730874633280,-568.52,0.00037808,14]
[341422714,1730874633293,-500.0,0.00037808,14]
[341422716,1730874633303,-427.45,0.00037808,2]
[341422718,1730874633313,-427.45,0.00037808,2]
[341422720,1730874633323,-427.45,0.00037808,2]
[341422721,1730874633336,-427.45,0.00037808,2]
[341422723,1730874633345,-150.0,0.00037808,2]
[341422725,1730874633355,-619.25086813,0.00037809,15]
[341422727,1730874633367,-150.0,0.0003781,2]
[341422730,1730874633378,-164.32287531,0.00037815,2]
[341422732,1730874633388,-619.25086813,0.00037821,15]
[341422734,1730874633397,-150.0,0.00037827,2]
[341422735,1730874633408,-150.0,0.00037827,2]
[341422738,1730874633418,-150.0,0.00037831,2]
[341422740,1730874633428,-619.25086813,0.00037832,15]
[341422742,1730874633438,-150.0,0.00037836,2]
[341422744,1730874633448,-150.0,0.00037837,2]
[341422746,1730874633458,-150.0,0.0003784,2]
[341422748,1730874633467,-150.0,0.0003784,2]
[341422750,1730874633488,-150.0,0.00037843,2]
[341422752,1730874633498,-619.25086813,0.00037843,15]
[341422754,1730874633508,-150.0,0.00037848,2]
[341422755,1730874633517,-150.0,0.00037851,2]
[341422756,1730874633527,-150.0,0.00037853,2]
[341422757,1730874633536,-619.25086813,0.00037855,15]
[341422758,1730874633545,-500.0,0.00037856,3]
[341422759,1730874633555,-164.32287531,0.00037858,2]
[341422760,1730874633564,-150.0,0.00037858,2]
[341422761,1730874633577,-150.0,0.00037859,2]
[341422762,1730874633587,-150.0,0.0003786,2]
[341422763,1730874633596,-150.0,0.00037861,2]
[341422764,1730874633606,-500.0,0.00037865,3]
[341422765,1730874633615,-150.0,0.00037865,2]
[341422766,1730874633625,-619.25086813,0.00037866,15]
[341422768,1730874633635,-150.0,0.00037871,2]
[341422770,1730874633644,-150.0,0.00037872,2]
[341422771,1730874633653,-500.0,0.00037874,3]
[341422772,1730874633663,-150.0,0.00037874,2]
[341422773,1730874633672,-150.0,0.00037877,2]
[341422774,1730874633681,-619.25086813,0.00037877,15]
[341422775,1730874633691,-150.0,0.00037879,2]
[341422776,1730874633700,-150.0,0.00037881,2]
[341422777,1730874633709,-500.0,0.00037882,3]
[341422778,1730874633719,-150.0,0.00037884,2]
[341422779,1730874633728,-598.87328436,0.00037888,10]
[341422780,1730874633737,-224.99752713,0.00037888,2]
[341422781,1730874633747,-619.25086813,0.00037889,15]
[341422782,1730874633756,-1000.0,0.00037889,2]
[341422783,1730874633766,-5755.39836688,0.00037889,2]
[341422784,1730874633793,-2334.45599337,0.00037889,2]
[341422787,1730874633815,-2061.14953975,0.00037889,2]
[341422788,1730874633826,-466.60046025,0.00037889,2]
[341422789,1730874633837,-5244.89272984,0.00037889,2]
[341422790,1730874633853,-2250.50057768,0.00037889,2]
[341422791,1730874633864,-374.94379054,0.00037889,2]
[341422792,1730874633875,-835.70398492,0.00037889,2]
[341422795,1730874637638,-2622.72494,0.00036948,2]
[341422796,1730874637650,-751.58,0.00036948,2]
[341422797,1730874637662,-939.3,0.00036948,2]
[341422798,1730874637759,-1140.17506,0.00036948,2]
[341422799,1730874637769,-493.65354089,0.00037808,14]
[341422800,1730874637779,-896.04295677,0.00037889,2]
[341422801,1730874637788,-1000.0,0.00037889,2]
[341422802,1730874637798,-18122.22039943,0.00037889,2]
[341422803,1730874637810,-19696.68950057,0.00037889,2]
[341422804,1730874637821,-1009.6108,0.00037889,2]